bitfinex/quotes_SOLUSD_20250209
["timestamp","ask_amount","ask_price","bid_price","bid_amount"]
[1739069743318,25.07179,202.17,202.11,11.76850984]
[1739069743493,20.12549,202.17,202.11,11.76850984]
[1739069744011,20.0,202.17,202.12,11.76850984]
[1739069745718,20.0,202.17,202.14,11.76850984]
[1739069748921,20.0,202.17,202.13,11.76850984]
[1739069749320,11.76850984,202.2,202.14,11.76850984]
[1739069749503,6.2044,202.21,202.1,4.948]
[1739069749504,6.2044,202.21,202.17,11.76850984]
[1739069751722,20.0,202.2,202.17,11.76850984]
[1739069751930,20.0,202.2,202.16,11.76850984]
[1739069753234,4.9451,202.22,202.16,11.76850984]
[1739069753728,4.9451,202.22,202.17,11.76850984]
[1739069754715,4.9451,202.22,202.17,7.52129972]
[1739069756131,4.9451,202.22,202.16,7.52129972]
[1739069756632,4.9451,202.22,202.15,12.46779972]
[1739069757525,9.14069972,202.23,202.15,12.46779972]
[1739069757722,4.9441,202.26,202.19,7.52129972]
[1739069757902,4.9441,202.26,202.2,7.52129972]
[1739069758109,20.0,202.24,202.2,7.52129972]
[1739069758519,20.0,202.24,202.19,7.52129972]
[1739069758703,20.0,202.24,202.19,12.46699972]
[1739069758908,5.06929,202.28,202.21,7.52129972]
[1739069758909,7.52129972,202.27,202.21,7.52129972]
[1739069759309,7.52129972,202.27,202.2,7.52129972]
[1739069760116,7.52129972,202.27,202.2,12.46669972]
[1739069760430,12.46509972,202.28,202.22,7.52129972]
[1739069761311,20.0,202.25,202.22,7.52129972]
[1739069761512,20.0,202.25,202.21,12.46649972]
[1739069765243,4.9438,202.28,202.22,7.52129972]
[1739069765421,20.0,202.26,202.22,7.52129972]
[1739069766044,0.03,202.25,202.22,7.52129972]
[1739069768242,0.03,202.25,202.21,12.46659972]
[1739069768444,0.03,202.25,202.21,4.9453]
[1739069770947,0.03,202.25,202.2,12.46679972]
[1739069771154,0.03,202.25,202.18,12.46719972]
[1739069771752,0.03,202.25,202.19,7.52129972]
[1739069772345,7.52129972,202.24,202.18,12.46719972]
[1739069772543,7.52129972,202.2,202.16,135.8]
[1739069772849,7.52129972,202.2,202.14,12.46829972]
[1739069773256,7.52129972,202.21,202.15,7.52129972]
[1739069774229,6.6245,202.22,202.17,7.52129972]
[1739069774549,6.6245,202.22,202.18,7.52129972]
[1739069774727,6.6245,202.22,202.17,7.52129972]
[1739069776155,6.6245,202.22,202.15,4.9467]
[1739069776156,6.6245,202.22,202.16,7.52129972]
[1739069776338,11.5697,202.22,202.16,7.52129972]
[1739069776519,20.0,202.19,202.16,7.52129972]
[1739069776720,7.52129972,202.18,202.12,143.32129972]
[1739069776923,7.52129972,202.18,202.12,135.8]
[1739069778158,7.52129972,202.18,202.12,143.32129972]
[1739069778453,20.0,202.18,202.12,143.32129972]
[1739069778754,24.946,202.19,202.14,11.75518668]
[1739069778929,6.6245,202.22,202.16,11.75518668]
[1739069779251,6.6245,202.22,202.18,11.75518668]
[1739069780253,0.03,202.25,202.2,11.75518668]
[1739069780440,20.0,202.23,202.2,11.75518668]
[1739069780960,0.03,202.25,202.2,11.75518668]
[1739069781842,0.03,202.25,202.21,11.75518668]
[1739069784662,0.03,202.25,202.2,4.9455]
[1739069784663,0.03,202.25,202.2,16.70068668]
[1739069786360,11.78518668,202.25,202.19,11.75518668]
[1739069786543,11.78518668,202.25,202.19,16.70098668]
[1739069788048,11.75518668,202.23,202.18,135.8]
[1739069788546,11.78518668,202.25,202.19,11.75518668]
[1739069788745,11.78518668,202.25,202.19,12.49686839]
[1739069789673,11.78518668,202.25,202.19,11.75518668]
[1739069789968,11.78518668,202.25,202.19,16.70078668]
[1739069790963,11.78518668,202.25,202.19,4.9456]
[1739069791763,0.03,202.22,202.19,4.9456]
[1739069792974,0.03,202.22,202.18,135.8]
[1739069794871,0.03,202.22,202.18,147.55518668]
[1739069796268,0.03,202.22,202.18,11.75518668]
[1739069796567,0.03,202.22,202.17,16.70118668]
[1739069797674,11.78518668,202.22,202.16,4.9465]
[1739069797880,11.75518668,202.2,202.15,199.36880587]
[1739069798073,11.75518668,202.2,202.15,63.56880587]
[1739069800372,11.75518668,202.2,202.15,4.9468]
[1739069800678,7.52337951,202.2,202.15,4.9468]
[1739069800877,7.52337951,202.21,202.15,7.52337951]
[1739069801677,7.52337951,202.21,202.14,7.52337951]
[1739069801971,7.52337951,202.21,202.15,4.9468]
[1739069802349,7.52337951,202.21,202.1,7.52337951]
[1739069802350,7.52337951,202.16,202.1,7.52337951]
[1739069802576,7.52337951,202.17,202.11,7.52337951]
[1739069802770,7.52337951,202.18,202.12,7.52337951]
[1739069803453,7.52337951,202.18,202.12,12.47087951]
[1739069803966,20.0,202.18,202.16,7.52337951]
[1739069804171,0.03,202.22,202.17,7.52337951]
[1739069804357,0.03,202.22,202.19,7.52337951]
[1739069804557,0.03,202.22,202.2,7.52337951]
[1739069805083,0.03,202.22,202.21,7.52337951]
[1739069805657,0.03,202.22,202.21,12.46867951]
[1739069806679,0.03,202.22,202.21,16.69192788]
[1739069807496,0.03,202.22,202.2,11.74662788]
[1739069809781,0.03,202.22,202.18,135.8]
[1739069809782,0.03,202.22,202.18,152.49262788]
[1739069809988,0.03,202.22,202.2,11.74662788]
[1739069810165,0.03,202.22,202.21,11.74662788]
[1739069810874,0.03,202.22,202.21,147.54662788]
[1739069811078,0.03,202.22,202.21,162.66296641]
[1739069812087,0.03,202.22,202.21,167.60826641]
[1739069812263,0.03,202.22,202.21,167.73375641]
[1739069814583,0.03,202.22,202.21,154.07092788]
[1739069814791,0.03,202.22,202.21,152.49192788]
[1739069815087,0.03,202.22,202.21,135.8]
[1739069815678,11.77662788,202.22,202.16,140.7465]
[1739069815876,11.74662788,202.21,202.16,4.9465]
[1739069817186,11.77662788,202.22,202.16,16.69312788]
[1739069817368,0.03,202.22,202.16,16.69312788]
[1739069818787,11.77662788,202.22,202.16,16.69312788]
[1739069820665,11.74662788,202.2,202.14,16.69342788]
[1739069820869,11.74662788,202.19,202.12,211.11603375]
[1739069821090,11.74662788,202.18,202.12,63.56940587]
[1739069822104,11.74662788,202.19,202.12,75.31603375]
[1739069822275,0.03,202.22,202.18,11.74662788]
[1739069822594,0.03,202.22,202.17,11.74662788]
[1739069823388,11.77662788,202.22,202.16,11.74662788]
[1739069823893,0.03,202.22,202.17,11.74662788]
[1739069825996,0.03,202.18,202.17,11.74662788]
[1739069827602,0.03,202.18,202.17,17.43472482]
[1739069830793,0.03,202.18,202.15,4.9466]
[1739069831694,0.03,202.18,202.15,16.69322788]
[1739069831995,0.03,202.18,202.16,11.74662788]
[1739069832200,0.03,202.18,202.16,16.69312788]
[1739069832387,0.03,202.18,202.17,11.74662788]
[1739069834882,0.03,202.18,202.16,16.69312788]
[1739069836802,0.03,202.18,202.17,11.74662788]
[1739069838007,0.03,202.18,202.17,16.69292788]
[1739069842613,0.03,202.18,202.17,148.26463114]
[1739069842910,0.03,202.22,202.17,174.16776967]
[1739069843082,0.03,202.22,202.21,7.51833114]
[1739069843378,0.03,202.22,202.21,144.05984869]
[1739069843583,0.03,202.22,202.21,7.51833114]
[1739069843796,0.03,202.22,202.21,157.4717037]
[1739069844107,0.03,202.22,202.21,156.73017967]
[1739069845111,0.03,202.22,202.21,161.67547967]
[1739069846708,0.03,202.22,202.21,165.89885761]
[1739069847513,0.0001,202.22,202.21,228.39184348]
[1739069847699,0.03,202.25,202.22,13.66282853]
[1739069847899,0.03,202.25,202.24,25.40453761]
[1739069849112,0.03,202.25,202.24,30.34913761]
[1739069852715,0.03,202.25,202.24,224.77114348]
[1739069854315,0.03,202.25,202.24,211.10831495]
[1739069857406,0.03,202.25,202.21,135.8]
[1739069858899,0.03,202.25,202.21,140.7452]
[1739069860921,0.03,202.25,202.21,140.8082]
[1739069861300,0.03,202.25,202.21,152.54990908]
[1739069861605,0.03,202.25,202.21,16.74990908]
[1739069861797,0.03,202.25,202.21,0.063]
[1739069863808,0.03,202.25,202.21,5.0083]
[1739069865223,0.03,202.25,202.21,11.80470908]
[1739069866733,0.03,202.25,202.22,4.9451]
[1739069868526,0.03,202.25,202.21,143.38087037]
[1739069868741,0.03,202.25,202.21,135.863]
[1739069873527,0.03,202.25,202.21,0.063]
[1739069879335,7.51787037,202.24,202.21,0.063]
[1739069879636,7.51787037,202.22,202.21,0.063]
[1739069879822,7.51787037,202.23,202.21,0.063]
[1739069880022,7.54787037,202.25,202.21,0.063]
[1739069881260,0.03,202.25,202.21,0.063]
[1739069881541,0.03,202.25,202.21,7.58087037]
[1739069882338,20.03,202.25,202.21,0.063]
[1739069885755,27.54787037,202.25,202.21,0.063]
[1739069887957,0.03,202.25,202.21,0.063]
[1739069889229,7.54787037,202.25,202.21,0.063]
[1739069890141,0.03,202.25,202.21,0.063]
[1739069891960,7.54787037,202.25,202.21,0.063]
[1739069895359,7.51787037,202.23,202.21,0.063]
[1739069895663,7.51787037,202.22,202.21,0.063]
[1739069896239,12.71395037,202.22,202.21,0.063]
[1739069900665,26.1257989,202.22,202.21,0.063]
[1739069901569,34.0912989,202.22,202.21,0.063]
[1739069902262,0.25098,202.18,202.11,4.9477]
[1739069902466,0.25098,202.18,202.09,0.063]
[1739069902467,7.51787037,202.15,202.09,5.011]
[1739069902669,7.51787037,202.13,202.09,0.063]
[1739069902847,7.51787037,202.12,202.09,0.063]
[1739069903662,7.51787037,202.11,202.09,0.063]
[1739069905373,7.76885037,202.1,202.09,0.063]
[1739069905674,21.1806989,202.1,202.09,0.063]
[1739069906052,51.25218038,202.1,202.09,0.063]
[1739069906550,57.20018038,202.1,202.09,0.063]
[1739069906750,87.20018038,202.1,202.09,0.063]
[1739069906952,20.0,202.06,202.0,0.063]
[1739069907258,20.0,202.06,202.01,7.51787037]
[1739069907466,20.0,202.06,202.0,5.0134]
[1739069907467,7.51787037,202.08,202.02,7.51787037]
[1739069908474,7.51787037,202.08,202.03,4.9497]
[1739069909354,27.51787037,202.06,202.0,7.58087037]
[1739069909670,7.51787037,202.05,202.0,0.063]
[1739069909971,27.51787037,202.06,202.0,7.58087037]
[1739069910653,27.51787037,202.06,202.01,4.9502]
[1739069911876,27.51787037,202.06,202.0,0.063]
[1739069912079,27.51787037,202.06,202.0,5.0134]
[1739069912290,7.51787037,202.05,202.0,5.0134]
[1739069912592,7.51787037,202.04,202.0,5.0134]
[1739069913988,7.51787037,202.03,202.0,0.063]
[1739069915283,7.51787037,202.02,202.0,0.063]
[1739069915863,7.51787037,202.01,202.0,0.063]
[1739069918380,7.51787037,202.02,202.0,0.063]
[1739069919685,7.51787037,202.04,201.97,7.51787037]
[1739069919872,12.46707037,202.05,201.99,7.51787037]
[1739069921767,0.25098,202.04,201.99,7.51787037]
[1739069922082,7.76885037,202.04,201.98,12.46857037]
[1739069922991,7.51787037,202.03,201.97,7.51787037]
[1739069923172,7.51787037,202.03,201.96,12.46927037]
[1739069924195,7.51787037,202.03,201.98,4.9509]
[1739069929206,7.51787037,202.02,201.96,12.46927037]
[1739069929582,7.51787037,202.02,201.96,4.9514]
[1739069929885,7.76885037,202.04,201.98,7.51787037]
[1739069930284,7.76885037,202.04,201.97,7.51787037]
[1739069931686,7.76885037,202.04,201.98,12.46857037]
[1739069933401,7.51787037,202.03,201.98,4.9507]
[1739069934306,7.51787037,202.03,201.96,7.51787037]
[1739069934603,7.51787037,202.03,201.96,12.46927037]
[1739069936996,7.51787037,202.03,201.98,4.9509]
[1739069942210,7.76885037,202.02,201.96,12.46927037]
[1739069942415,7.51787037,202.01,201.98,0.063]
[1739069942615,27.51787037,202.0,201.98,0.063]
[1739069942796,7.76885037,201.99,201.98,0.063]
[1739069943003,27.51787037,202.0,201.98,0.063]
[1739069943190,20.0,201.99,201.98,0.063]
[1739069944220,13.84217037,202.01,201.98,0.063]
[1739069944600,7.54787037,202.03,201.98,0.063]
[1739069944791,0.03,202.03,201.98,7.58087037]
[1739069945824,0.03,202.03,201.99,7.51787037]
[1739069947813,20.03,202.03,201.99,7.51787037]
[1739069948020,20.03,202.03,201.99,12.46837037]
[1739069948514,20.03,202.03,201.99,4.9505]
[1739069949013,0.25098,202.02,201.98,0.063]
[1739069949199,7.51787037,201.99,201.98,0.063]
[1739069949922,7.51787037,202.0,201.98,0.063]
[1739069950224,7.51787037,202.01,201.98,0.063]
[1739069952026,12.46787037,202.02,201.98,0.063]
[1739069955627,7.51787037,202.01,201.98,0.063]
[1739069956329,12.46787037,202.02,201.98,0.063]
[1739069959225,7.51787037,202.0,201.98,0.063]
[1739069959918,27.51787037,202.01,201.98,0.063]
[1739069960625,7.51787037,202.0,201.98,0.063]
[1739069965244,7.76885037,201.99,201.98,0.063]
[1739069967341,12.71955037,201.99,201.98,0.063]
[1739069968031,26.1313989,201.99,201.98,0.063]
[1739069969420,27.1313989,201.99,201.98,0.063]
[1739069969621,0.25098,201.94,201.9,0.063]
[1739069969921,7.51787037,201.92,201.9,0.063]
[1739069970241,7.51787037,201.93,201.9,0.063]
[1739069970940,7.51787037,201.95,201.9,0.063]
[1739069971147,7.51787037,201.99,201.93,7.51787037]
[1739069971445,20.0,201.98,201.94,7.51787037]
[1739069972042,7.51787037,202.01,201.94,7.51787037]
[1739069972231,15.26961321,202.02,201.95,7.51787037]
[1739069972846,15.26961321,202.02,201.96,12.46927037]
[1739069973043,7.76885037,202.01,201.94,7.51787037]
[1739069973647,7.76885037,202.01,201.95,7.51787037]
[1739069974546,0.03,202.02,201.98,7.51787037]
[1739069975653,7.51787037,202.0,201.95,199.37350587]
[1739069976149,7.51787037,201.99,201.95,199.37350587]
[1739069976535,7.51787037,201.99,201.95,194.42200587]
[1739069979060,7.51787037,202.0,201.95,194.42200587]
[1739069979545,7.51787037,202.0,201.95,194.48500587]
[1739069980662,7.51787037,202.0,201.95,63.63670587]
[1739069985045,7.51787037,202.0,201.95,58.68500587]
[1739069985249,7.51787037,201.99,201.95,58.68500587]
[1739069985558,7.51787037,201.97,201.95,58.68500587]
[1739069985862,7.51787037,201.97,201.95,0.063]
[1739069986269,7.51787037,201.96,201.95,0.063]
[1739069986557,7.76885037,201.96,201.95,0.063]
[1739069986759,12.72025037,201.96,201.95,0.063]
[1739069987858,26.1320989,201.96,201.95,0.063]
[1739069989686,27.35650165,201.96,201.95,0.063]
[1739069989983,20.25098,201.92,201.9,0.063]
[1739069990288,21.1806989,201.91,201.9,0.063]
[1739069990569,53.82738038,201.91,201.9,0.063]
[1739069990772,60.24758038,201.91,201.9,0.063]
[1739069991884,20.25098,201.89,201.88,0.063]
[1739069992180,46.1337989,201.89,201.88,0.063]
[1739069993091,47.1337989,201.89,201.88,0.063]
[1739069995189,0.25098,201.84,201.77,0.063]
[1739069995357,7.51787037,201.81,201.77,0.063]
[1739069995792,7.51787037,201.8,201.77,0.063]
[1739069997090,0.25098,201.84,201.77,0.063]
[1739069997091,7.51787037,201.81,201.77,0.063]
[1739069998489,5.20568,201.83,201.77,0.063]
[1739069998490,7.51787037,201.83,201.77,7.58087037]
[1739069999889,0.25098,201.82,201.77,7.58087037]
[1739070000192,0.25098,201.82,201.77,12.53677037]
[1739070000382,7.51787037,201.84,201.78,7.51787037]
[1739070001288,0.25098,201.83,201.78,7.51787037]
[1739070001682,0.25098,201.83,201.78,12.47367037]
[1739070002159,0.25098,201.83,201.78,4.9558]
[1739070003188,7.51787037,201.83,201.78,4.9558]
[1739070004068,7.76885037,201.84,201.78,4.9558]
[1739070004269,7.76885037,201.84,201.78,63.57780587]
[1739070004489,7.76885037,201.84,201.78,63.64080587]
[1739070005582,7.51787037,201.8,201.78,58.68500587]
[1739070005786,7.51787037,201.79,201.78,58.68500587]
[1739070006000,7.51787037,201.79,201.78,0.063]
[1739070006189,0.25098,201.82,201.78,0.063]
[1739070006190,7.51787037,201.8,201.78,0.063]
[1739070006691,0.25098,201.8,201.78,0.063]
[1739070007068,7.51787037,201.82,201.78,0.063]
[1739070007275,32.14616616,202.01,201.78,0.063]
[1739070007276,7.51787037,201.86,201.8,7.51787037]
[1739070007482,7.51787037,201.89,201.83,7.51787037]
[1739070008407,7.51787037,201.9,201.84,7.51787037]
[1739070008694,7.51787037,201.91,201.85,7.51787037]
[1739070008896,7.51787037,201.91,201.84,7.51787037]
[1739070009299,7.51787037,201.92,201.86,7.51787037]
[1739070009472,12.46997037,201.94,201.87,7.51787037]
[1739070009682,7.51787037,201.93,201.87,7.51787037]
[1739070009916,20.0,201.91,201.86,7.51787037]
[1739070010209,7.51787037,201.89,201.83,63.57660587]
[1739070010907,7.51787037,201.88,201.83,63.57660587]
[1739070012326,7.51787037,201.87,201.83,63.57660587]
[1739070012515,7.51787037,201.88,201.83,63.57660587]
[1739070012810,7.51787037,201.87,201.83,63.57660587]
[1739070013008,7.51787037,201.88,201.83,63.57660587]
[1739070015228,7.64336037,201.89,201.83,63.57660587]
[1739070016320,0.03,201.88,201.83,63.57660587]
[1739070016625,0.03,201.88,201.83,71.09447624]
[1739070016931,0.03,201.88,201.84,7.51787037]
[1739070017115,0.03,201.88,201.83,71.09447624]
[1739070017633,7.54787037,201.88,201.83,63.57660587]
[1739070019427,7.51787037,201.87,201.83,63.57660587]
[1739070019938,7.54787037,201.88,201.83,63.57660587]
[1739070020929,0.03,201.88,201.83,71.09447624]
[1739070022014,0.03,201.88,201.84,7.51787037]
[1739070024832,0.03,201.88,201.84,4.9544]
[1739070025039,0.03,201.88,201.84,199.37640587]
[1739070025636,7.51787037,201.87,201.84,194.42200587]
[1739070028245,0.12549,201.84,201.8,58.62200587]
[1739070028540,0.25098,201.86,201.83,0.063]
[1739070028710,20.25098,201.84,201.83,0.063]
[1739070029455,41.1806989,201.84,201.83,0.063]
[1739070030311,46.1350989,201.84,201.83,0.063]
[1739070043748,7.64336037,201.84,201.83,0.063]
[1739070044066,7.54787037,201.88,201.83,0.063]
[1739070044368,0.03,201.88,201.86,7.51787037]
[1739070044553,0.03,201.88,201.87,7.51787037]
[1739070044957,0.03,201.88,201.86,66.13987624]
[1739070045164,0.03,201.88,201.86,58.62200587]
[1739070045165,7.67336037,201.88,201.86,58.62200587]
[1739070045872,12.62676037,201.88,201.86,58.62200587]
[1739070046172,7.76885037,201.87,201.86,58.62200587]
[1739070047177,13.66282853,201.86,201.83,0.063]
[1739070047386,21.0552089,201.84,201.83,0.063]
[1739070048069,26.0096089,201.84,201.83,0.063]
[1739070049460,26.1350989,201.84,201.83,0.063]
[1739070050591,18.61722853,201.84,201.83,0.063]
[1739070050784,30.41914134,201.84,201.83,0.063]
[1739070055799,31.41914134,201.84,201.83,0.063]
[1739070056988,31.17141424,201.84,201.83,0.063]
[1739070057197,30.17141424,201.84,201.83,0.063]
[1739070059504,30.29690424,201.84,201.83,0.063]
[1739070060196,31.29690424,201.84,201.83,0.063]
[1739070061599,30.29690424,201.84,201.83,0.063]
[1739070064000,0.12549,201.84,201.83,0.063]
[1739070067714,11.80191281,201.85,201.83,0.063]
[1739070067916,16.78551281,201.88,201.83,0.063]
[1739070068219,11.92740281,201.85,201.83,0.063]
[1739070069011,16.88150281,201.85,201.83,0.063]
[1739070069319,0.03,201.88,201.83,0.063]
[1739070069320,11.83191281,201.88,201.83,0.063]
[1739070069522,0.03,201.88,201.83,0.063]
[1739070069892,0.03,201.88,201.83,11.86491281]
[1739070070522,0.15549,201.88,201.83,11.86491281]
[1739070070696,12.65607922,201.88,201.83,0.063]
[1739070070901,0.12549,201.86,201.83,0.063]
[1739070072613,0.12549,201.86,201.83,58.68500587]
[1739070073822,0.03,201.88,201.83,58.68500587]
[1739070074123,0.03,201.88,201.83,66.23209509]
[1739070074802,0.15549,201.88,201.83,66.23209509]
[1739070075188,0.15549,201.88,201.83,71.18669509]
[1739070075516,0.03,201.88,201.84,7.54708922]
[1739070076011,0.03,201.86,201.84,7.54708922]
[1739070076510,0.03,201.86,201.84,12.50128922]
[1739070077009,0.03,201.86,201.85,7.54708922]
[1739070077217,0.03,201.86,201.85,9.07378922]
[1739070078427,0.03,201.86,201.85,14.77087037]
[1739070078599,0.03,201.86,201.85,215.81187624]
[1739070078916,0.03,201.88,201.85,228.48074362]
[1739070079136,0.03,201.88,201.87,7.54708922]
[1739070079426,0.03,201.88,201.87,8.2898687]
[1739070081225,0.03,201.88,201.87,13.2434687]
[1739070081421,0.03,201.98,201.88,13.41184853]
[1739070081637,0.03,201.98,201.95,7.54708922]
[1739070081995,0.03,201.98,201.96,7.54708922]
[1739070082308,7.54708922,201.97,201.9,194.42200587]
[1739070082515,7.54708922,201.94,201.9,194.42200587]
[1739070083327,0.15549,201.98,201.9,194.42200587]
[1739070083493,7.54708922,201.96,201.9,199.37480587]
[1739070083696,0.12549,201.96,201.9,206.92189509]
[1739070084722,0.12549,201.96,201.9,211.15805312]
[1739070085700,16.73464725,201.96,201.9,194.42200587]
[1739070085901,11.78324725,201.93,201.9,58.62200587]
[1739070086117,11.78324725,201.92,201.9,58.62200587]
[1739070086700,0.12549,201.92,201.9,58.62200587]
[1739070090329,0.12549,201.92,201.86,58.62200587]
[1739070090330,0.12549,201.9,201.86,58.62200587]
[1739070090516,11.78324725,201.88,201.86,58.62200587]
[1739070090721,11.78324725,201.87,201.86,58.62200587]
[1739070091134,11.90873725,201.87,201.86,58.62200587]
[1739070091521,0.12549,201.86,201.84,0.063]
[1739070091710,11.90873725,201.86,201.84,0.063]
[1739070093459,11.90873725,201.85,201.84,0.063]
[1739070095156,12.03422725,201.85,201.84,0.063]
[1739070095355,30.40017578,201.85,201.84,0.063]
[1739070097331,16.98832725,201.85,201.84,0.063]
[1739070097531,30.40017578,201.85,201.84,0.063]
[1739070100277,12.03422725,201.85,201.84,0.063]
[1739070101570,16.98832725,201.85,201.84,0.063]
[1739070105178,30.40017578,201.85,201.84,0.063]
[1739070106475,20.0,201.82,201.78,0.063]
[1739070106672,7.80641833,201.79,201.78,0.063]
[1739070106861,21.21826686,201.79,201.78,0.063]
[1739070107189,13.66282853,201.78,201.77,0.063]
[1739070107376,33.53733853,201.75,201.74,0.063]
[1739070107580,41.21826686,201.75,201.74,0.063]
[1739070108487,20.25098,201.7,201.69,0.063]
[1739070108778,71.44002018,201.7,201.69,0.063]
[1739070109166,101.44002018,201.7,201.69,0.063]
[1739070109366,20.25098,201.67,201.63,0.063]
[1739070109577,72.21826686,201.67,201.63,0.063]
[1739070110583,70.62132853,201.67,201.63,0.063]
[1739070110762,82.44667215,201.67,201.63,0.063]
[1739070110971,80.44667215,201.67,201.63,0.063]
[1739070111896,50.44667215,201.67,201.63,0.063]
[1739070112064,25.48817215,201.67,201.63,0.063]
[1739070113397,11.82534362,201.71,201.64,11.82534362]
[1739070113562,0.25098,201.7,201.64,11.82534362]
[1739070114197,0.12549,201.68,201.64,11.82534362]
[1739070114598,0.12549,201.68,201.63,11.88834362]
[1739070116391,0.12549,201.68,201.64,11.82534362]
[1739070116996,0.12549,201.68,201.63,16.84784362]
[1739070118691,20.0,201.69,201.63,152.64784362]
[1739070118884,20.0,201.69,201.64,16.78464362]
[1739070120570,20.0,201.69,201.64,4.9593]
[1739070122371,11.82534362,201.72,201.65,11.82534362]
[1739070122576,11.82534362,201.73,201.66,11.88834362]
[1739070122793,11.82534362,201.72,201.66,0.063]
[1739070122992,31.82534362,201.71,201.66,0.063]
[1739070123483,0.12549,201.7,201.66,0.063]
[1739070123685,11.95083362,201.7,201.66,0.063]
[1739070124498,11.82534362,201.74,201.67,11.82534362]
[1739070124703,11.82534362,201.76,201.69,11.82534362]
[1739070124997,20.0,201.73,201.69,70.44734949]
[1739070125199,11.82534362,201.76,201.69,58.62200587]
[1739070125200,11.95083362,201.75,201.69,58.62200587]
[1739070125505,31.82534362,201.74,201.69,58.62200587]
[1739070125700,11.82534362,201.72,201.69,58.62200587]
[1739070126592,0.063,201.72,201.69,58.62200587]
[1739070126994,25.48817215,201.7,201.69,58.62200587]
[1739070127174,13.66282853,201.69,201.66,0.063]
[1739070127380,25.48817215,201.67,201.66,0.063]
[1739070128899,0.25098,201.61,201.57,0.063]
[1739070129104,11.95083362,201.58,201.57,0.063]
[1739070131509,11.82534362,201.59,201.57,0.063]
[1739070131712,31.82534362,201.63,201.57,11.88834362]
[1739070132007,11.82534362,201.66,201.59,11.82534362]
[1739070132185,11.82534362,201.67,201.6,11.82534362]
[1739070132494,11.82534362,201.68,201.62,11.82534362]
[1739070132814,11.95083362,201.63,201.58,4.9605]
[1739070133694,0.12549,201.63,201.58,4.9605]
[1739070133894,0.12549,201.61,201.57,0.063]
[1739070134407,11.95083362,201.61,201.57,0.063]
[1739070135315,32.07632362,201.58,201.57,0.063]
[1739070135493,32.07632362,201.58,201.55,0.063]
[1739070135494,45.48817215,201.58,201.55,0.063]
[1739070135805,25.36268215,201.56,201.55,0.063]
[1739070136585,11.95083362,201.56,201.55,0.063]
[1739070136782,0.12549,201.56,201.55,0.063]
[1739070137193,0.25098,201.52,201.5,0.063]
[1739070137400,49.62522853,201.52,201.5,0.063]
[1739070137728,11.82534362,201.51,201.5,0.063]
[1739070138314,25.48817215,201.51,201.5,0.063]
[1739070139195,0.25098,201.46,201.45,0.03]
[1739070139401,32.07632362,201.46,201.45,0.03]
[1739070139804,20.12549,201.46,201.45,0.03]
[1739070140204,11.82534362,201.48,201.45,0.03]
[1739070140699,12.07632362,201.46,201.45,0.03]
[1739070140898,46.48817215,201.46,201.45,0.03]
[1739070141305,45.48817215,201.46,201.45,0.03]
[1739070143214,0.25098,201.46,201.45,0.03]
[1739070143418,0.12549,201.46,201.45,0.03]
[1739070144917,37.0837,201.54,201.45,0.03]
[1739070144918,11.82534362,201.51,201.45,0.03]
[1739070145129,11.82534362,201.53,201.45,11.85534362]
[1739070145431,11.82534362,201.53,201.46,11.82534362]
[1739070145630,11.82534362,201.53,201.45,147.65534362]
[1739070145924,0.12549,201.52,201.45,147.65534362]
[1739070146302,0.12549,201.52,201.46,4.9637]
[1739070146630,0.12549,201.52,201.46,23.89911658]
[1739070147619,18.93541658,201.55,201.47,18.93541658]
[1739070147795,19.06090658,201.54,201.47,18.93541658]
[1739070148522,19.06090658,201.54,201.48,4.9632]
[1739070149324,18.93541658,201.49,201.46,4.9635]
[1739070149808,0.12549,201.48,201.45,4.9939]
[1739070150328,0.12549,201.54,201.45,4.9939]
[1739070150329,18.93541658,201.51,201.45,4.9939]
[1739070150497,18.93541658,201.51,201.48,0.03]